[Event "Late-Titled-Tuesday-Blitz-March-26-2024"]
[Site "Chess.com"]
[Date "2024.03.26"]
[Round "4"]
[White "Chempiblinka"]
[Black "hellokostya"]
[Result "0-1"]
[WhiteElo "2382"]
[BlackElo "2585"]
[TimeControl "180+1"]
[EndTime "14:41:04 PDT"]
[Termination "hellokostya won on time"]

1. Nf3 {[%clk 0:02:59.5]} 1... Nf6 {[%clk 0:02:59.4]} 2. g3 {[%clk 0:02:59.4]}
2... g6 {[%clk 0:02:59.6]} 3. Bg2 {[%clk 0:03:00]} 3... Bg7 {[%clk 0:03:00.2]}
4. O-O {[%clk 0:03:00.6]} 4... O-O {[%clk 0:03:00.9]} 5. c4 {[%clk 0:03:00.7]}
5... d6 {[%clk 0:03:01.1]} 6. Nc3 {[%clk 0:03:00.2]} 6... e5 {[%clk 0:03:00.8]}
7. d3 {[%clk 0:03:00.7]} 7... Nc6 {[%clk 0:03:00.4]} 8. Rb1 {[%clk 0:03:00.8]}
8... a5 {[%clk 0:03:00]} 9. a3 {[%clk 0:03:00.8]} 9... Re8 {[%clk 0:02:58.1]}
10. b4 {[%clk 0:02:46.8]} 10... axb4 {[%clk 0:02:57.4]} 11. axb4 {[%clk
0:02:47]} 11... e4 {[%clk 0:02:57.5]} 12. dxe4 {[%clk 0:02:25.3]} 12... Nxe4
{[%clk 0:02:58.4]} 13. Nxe4 {[%clk 0:02:25.8]} 13... Rxe4 {[%clk 0:02:59.3]} 14.
Nd2 {[%clk 0:02:24]} 14... Re8 {[%clk 0:02:51.8]} 15. b5 {[%clk 0:02:03.9]}
15... Nd4 {[%clk 0:02:46.3]} 16. e3 {[%clk 0:02:03.8]} 16... Ne6 {[%clk
0:02:45.9]} 17. Qb3 {[%clk 0:01:53.6]} 17... Nc5 {[%clk 0:02:44.9]} 18. Qd1
{[%clk 0:01:38.2]} 18... Bf5 {[%clk 0:02:43.2]} 19. e4 {[%clk 0:01:29.1]} 19...
Nxe4 {[%clk 0:02:42.9]} 20. Nxe4 {[%clk 0:01:29.7]} 20... Bxe4 {[%clk
0:02:43.8]} 21. Bxe4 {[%clk 0:01:29.6]} 21... Rxe4 {[%clk 0:02:44.7]} 22. Qd5
{[%clk 0:01:29.7]} 22... Rd4 {[%clk 0:02:34.6]} 23. Qxb7 {[%clk 0:01:28.3]}
23... Rxc4 {[%clk 0:02:34.3]} 24. Bg5 {[%clk 0:01:28.2]} 24... Qc8 {[%clk
0:02:28.7]} 25. Qf3 {[%clk 0:01:19.6]} 25... h6 {[%clk 0:02:11.5]} 26. Be3
{[%clk 0:01:13.4]} 26... Rb8 {[%clk 0:02:08.9]} 27. Rfe1 {[%clk 0:01:12.1]}
27... Qg4 {[%clk 0:02:02.2]} 28. Qd5 {[%clk 0:01:06.8]} 28... Qe4 {[%clk
0:01:53.4]} 29. Qd1 {[%clk 0:00:51.9]} 29... Qf5 {[%clk 0:01:48.1]} 30. b6
{[%clk 0:00:44.2]} 30... Rb7 {[%clk 0:00:51.7]} 31. Rc1 {[%clk 0:00:12.6]} 31...
Rxc1 {[%clk 0:00:45.6]} 32. Qxc1 {[%clk 0:00:12.7]} 32... cxb6 {[%clk
0:00:43.9]} 33. Qc6 {[%clk 0:00:12.6]} 33... Qd7 {[%clk 0:00:43.8]} 34. Qd5
{[%clk 0:00:10.4]} 34... b5 {[%clk 0:00:41]} 35. Rc1 {[%clk 0:00:10.3]} 35... b4
{[%clk 0:00:39.3]} 36. Qb3 {[%clk 0:00:10.1]} 36... Qe6 {[%clk 0:00:32]} 37. Qa4
{[%clk 0:00:07.2]} 37... Rb8 {[%clk 0:00:28.4]} 38. Rb1 {[%clk 0:00:03.6]} 38...
b3 {[%clk 0:00:27.5]} 39. h4 {[%clk 0:00:02.1]} 39... b2 {[%clk 0:00:27.3]} 40.
Qa3 {[%clk 0:00:01.2]} 40... Qe4 {[%clk 0:00:25.8]} 0-1

[Event "Late-Titled-Tuesday-Blitz-March-26-2024"]
[Site "Chess.com"]
[Date "2024.03.26"]
[Round "4"]
[White "SuperJesus88"]
[Black "GothamChess"]
[Result "1-0"]
[WhiteElo "2491"]
[BlackElo "2669"]
[TimeControl "180+1"]
[EndTime "14:41:13 PDT"]
[Termination "SuperJesus88 won by checkmate"]

1. e4 {[%clk 0:03:00.9]} 1... d5 {[%clk 0:02:59.4]} 2. exd5 {[%clk 0:02:59.4]}
2... Qxd5 {[%clk 0:03:00.3]} 3. Nc3 {[%clk 0:02:59.7]} 3... Qa5 {[%clk 0:03:01]}
4. Bc4 {[%clk 0:02:59.8]} 4... Nf6 {[%clk 0:03:01.4]} 5. d3 {[%clk 0:03:00.1]}
5... Bf5 {[%clk 0:03:01.6]} 6. Ne2 {[%clk 0:03:00.4]} 6... e6 {[%clk 0:02:59.4]}
7. Bd2 {[%clk 0:02:59.5]} 7... c6 {[%clk 0:02:59.1]} 8. O-O {[%clk 0:02:58.4]}
8... Qc7 {[%clk 0:02:56.5]} 9. Ng3 {[%clk 0:02:56.8]} 9... Bg6 {[%clk
0:02:56.3]} 10. f4 {[%clk 0:02:56.7]} 10... Bc5+ {[%clk 0:02:39.9]} 11. Kh1
{[%clk 0:02:55.8]} 11... O-O {[%clk 0:02:40.2]} 12. f5 {[%clk 0:02:54.8]} 12...
exf5 {[%clk 0:02:40.4]} 13. Nxf5 {[%clk 0:02:55.6]} 13... Nbd7 {[%clk
0:02:38.5]} 14. Bb3 {[%clk 0:02:42.2]} 14... b5 {[%clk 0:02:36.6]} 15. Qf3
{[%clk 0:02:33.2]} 15... a5 {[%clk 0:02:28.1]} 16. a4 {[%clk 0:02:26.7]} 16...
b4 {[%clk 0:02:28.5]} 17. Ne4 {[%clk 0:02:10.3]} 17... Nxe4 {[%clk 0:02:18.5]}
18. dxe4 {[%clk 0:02:10.5]} 18... Rae8 {[%clk 0:02:12.6]} 19. Bf4 {[%clk
0:02:07.3]} 19... Qb6 {[%clk 0:01:39.7]} 20. Nd6 {[%clk 0:01:31.7]} 20... Re7
{[%clk 0:01:36]} 21. Rae1 {[%clk 0:01:03.6]} 21... Kh8 {[%clk 0:01:35]} 22. e5
{[%clk 0:00:53.8]} 22... Bd4 {[%clk 0:01:27.5]} 23. Qg3 {[%clk 0:00:30.9]} 23...
Nc5 {[%clk 0:01:16.6]} 24. Nc4 {[%clk 0:00:23]} 24... Qa7 {[%clk 0:01:12.6]} 25.
Bg5 {[%clk 0:00:23]} 25... Ne4 {[%clk 0:01:01.1]} 26. Rxe4 {[%clk 0:00:18.8]}
26... Bxe4 {[%clk 0:01:02]} 27. Qh4 {[%clk 0:00:17.5]} 27... Ree8 {[%clk
0:00:18.6]} 28. Qxe4 {[%clk 0:00:17.1]} 28... f6 {[%clk 0:00:19]} 29. Bh4 {[%clk
0:00:10.9]} 29... fxe5 {[%clk 0:00:17.6]} 30. Re1 {[%clk 0:00:09.6]} 30... Qf7
{[%clk 0:00:15.9]} 31. h3 {[%clk 0:00:06.9]} 31... Qh5 {[%clk 0:00:15.5]} 32.
Bg3 {[%clk 0:00:04.3]} 32... Qg5 {[%clk 0:00:14.3]} 33. Qg4 {[%clk 0:00:03.5]}
33... Qf6 {[%clk 0:00:09.7]} 34. Qe2 {[%clk 0:00:03.1]} 34... e4 {[%clk
0:00:07.6]} 35. Nd6 {[%clk 0:00:02.3]} 35... Re7 {[%clk 0:00:04.7]} 36. Nxe4
{[%clk 0:00:02.7]} 36... Qg6 {[%clk 0:00:04.7]} 37. Qd3 {[%clk 0:00:03]} 37...
Rxe4 {[%clk 0:00:02.1]} 38. Rxe4 {[%clk 0:00:01.5]} 38... Rf1+ {[%clk
0:00:02.2]} 39. Qxf1 {[%clk 0:00:01.4]} 39... Qxe4 {[%clk 0:00:02.8]} 40. Qf8#
{[%clk 0:00:02]} 1-0

[Event "Late-Titled-Tuesday-Blitz-March-26-2024"]
[Site "Chess.com"]
[Date "2024.03.26"]
[Round "4"]
[White "DACF2905"]
[Black "HaryKane"]
[Result "1-0"]
[WhiteElo "2404"]
[BlackElo "2550"]
[TimeControl "180+1"]
[EndTime "14:41:13 PDT"]
[Termination "DACF2905 won by checkmate"]

1. e4 {[%clk 0:02:02]} 1... g6 {[%clk 0:02:56.6]} 2. Nc3 {[%clk 0:01:58.3]} 2...
Bg7 {[%clk 0:02:55.9]} 3. d4 {[%clk 0:01:59.2]} 3... d6 {[%clk 0:02:55.7]} 4.
Nge2 {[%clk 0:02:00.1]} 4... a6 {[%clk 0:02:50.8]} 5. g3 {[%clk 0:02:01]} 5...
b5 {[%clk 0:02:50.5]} 6. a3 {[%clk 0:02:00]} 6... Bb7 {[%clk 0:02:50.6]} 7. Bg2
{[%clk 0:02:00.9]} 7... Nf6 {[%clk 0:02:50]} 8. O-O {[%clk 0:02:01.4]} 8... Nfd7
{[%clk 0:02:48]} 9. h3 {[%clk 0:02:01.5]} 9... O-O {[%clk 0:02:47.2]} 10. Be3
{[%clk 0:02:00.9]} 10... Nc6 {[%clk 0:02:43.7]} 11. Qd2 {[%clk 0:02:01.1]} 11...
Na5 {[%clk 0:02:39.2]} 12. b3 {[%clk 0:02:00.3]} 12... Re8 {[%clk 0:02:36.1]}
13. Rad1 {[%clk 0:01:59.9]} 13... Nc6 {[%clk 0:02:26.9]} 14. Kh2 {[%clk
0:01:59.6]} 14... e5 {[%clk 0:02:25.3]} 15. f4 {[%clk 0:01:59.8]} 15... exf4
{[%clk 0:02:22.5]} 16. Nxf4 {[%clk 0:01:59.1]} 16... Ne7 {[%clk 0:02:13.8]} 17.
Rde1 {[%clk 0:01:54.6]} 17... Rc8 {[%clk 0:02:06.7]} 18. Qf2 {[%clk 0:01:50.8]}
18... Rf8 {[%clk 0:02:04]} 19. Ncd5 {[%clk 0:01:40.9]} 19... c5 {[%clk
0:01:54.1]} 20. c3 {[%clk 0:01:23.4]} 20... cxd4 {[%clk 0:01:52.1]} 21. cxd4
{[%clk 0:01:21.1]} 21... Bxd5 {[%clk 0:01:45.1]} 22. exd5 {[%clk 0:01:20.2]}
22... Nf5 {[%clk 0:01:42.7]} 23. Nd3 {[%clk 0:01:15.3]} 23... Rc3 {[%clk
0:01:36.2]} 24. Qd2 {[%clk 0:01:05.7]} 24... Rxb3 {[%clk 0:01:32.6]} 25. Rxf5
{[%clk 0:01:03.5]} 25... gxf5 {[%clk 0:01:32.1]} 26. Nb4 {[%clk 0:01:03.7]}
26... Re8 {[%clk 0:01:23.3]} 27. Nc6 {[%clk 0:01:01.6]} 27... Qb6 {[%clk
0:01:14.3]} 28. Bh6 {[%clk 0:01:01]} 28... Bxh6 {[%clk 0:00:41.3]} 29. Rxe8+
{[%clk 0:01:00]} 29... Kg7 {[%clk 0:00:41]} 30. Qc2 {[%clk 0:00:50.1]} 30... Nf6
{[%clk 0:00:34.4]} 31. Rb8 {[%clk 0:00:40.8]} 31... Qxb8 {[%clk 0:00:15.4]} 32.
Nxb8 {[%clk 0:00:39.4]} 32... Rxa3 {[%clk 0:00:15.9]} 33. Qxf5 {[%clk
0:00:37.3]} 33... b4 {[%clk 0:00:16.2]} 34. g4 {[%clk 0:00:33]} 34... Be3 {[%clk
0:00:07.5]} 35. g5 {[%clk 0:00:32.4]} 35... Ng8 {[%clk 0:00:06.2]} 36. Be4
{[%clk 0:00:25]} 36... Bxd4 {[%clk 0:00:05.9]} 37. Qxh7+ {[%clk 0:00:24]} 37...
Kf8 {[%clk 0:00:06.5]} 38. Nd7+ {[%clk 0:00:22.8]} 38... Ke7 {[%clk 0:00:07]}
39. Qxg8 {[%clk 0:00:23]} 39... Kxd7 {[%clk 0:00:07.4]} 40. Qxf7+ {[%clk
0:00:23.2]} 40... Kd8 {[%clk 0:00:07.8]} 41. Qb7 {[%clk 0:00:19.9]} 41... Be5+
{[%clk 0:00:06.3]} 42. Kg2 {[%clk 0:00:20]} 42... Rg3+ {[%clk 0:00:05.6]} 43.
Kf2 {[%clk 0:00:20.3]} 43... b3 {[%clk 0:00:06]} 44. Bf5 {[%clk 0:00:19.2]}
44... Ke8 {[%clk 0:00:04.6]} 45. g6 {[%clk 0:00:13.2]} 45... b2 {[%clk
0:00:02.6]} 46. Qf7+ {[%clk 0:00:12.4]} 46... Kd8 {[%clk 0:00:02.9]} 47. Qd7#
{[%clk 0:00:12.3]} 1-0

[Event "Late-Titled-Tuesday-Blitz-March-26-2024"]
[Site "Chess.com"]
[Date "2024.03.26"]
[Round "4"]
[White "jcibarra"]
[Black "Bilan_Danila"]
[Result "1-0"]
[WhiteElo "2987"]
[BlackElo "2630"]
[TimeControl "180+1"]
[EndTime "14:41:14 PDT"]
[Termination "jcibarra won by checkmate"]

1. e4 {[%clk 0:03:00.9]} 1... c6 {[%clk 0:02:58.5]} 2. Nf3 {[%clk 0:03:01.2]}
2... d5 {[%clk 0:02:59.4]} 3. d3 {[%clk 0:03:01.6]} 3... Bg4 {[%clk 0:02:56.2]}
4. h3 {[%clk 0:03:00.7]} 4... Bxf3 {[%clk 0:02:56.7]} 5. Qxf3 {[%clk 0:03:00.8]}
5... e6 {[%clk 0:02:57.6]} 6. g3 {[%clk 0:03:01]} 6... Nd7 {[%clk 0:02:56.1]} 7.
Bg2 {[%clk 0:03:01.4]} 7... Ngf6 {[%clk 0:02:55.9]} 8. O-O {[%clk 0:03:01.4]}
8... Bc5 {[%clk 0:02:50.1]} 9. Qe2 {[%clk 0:03:00.7]} 9... dxe4 {[%clk
0:02:48.8]} 10. dxe4 {[%clk 0:03:00.6]} 10... e5 {[%clk 0:02:49.2]} 11. a4
{[%clk 0:02:59.9]} 11... a5 {[%clk 0:02:48.3]} 12. Nd2 {[%clk 0:02:59.4]} 12...
O-O {[%clk 0:02:47.9]} 13. Nc4 {[%clk 0:02:59.3]} 13... Qc7 {[%clk 0:02:46.4]}
14. Bd2 {[%clk 0:02:59.4]} 14... Rfe8 {[%clk 0:02:31.1]} 15. h4 {[%clk
0:02:59.2]} 15... Nf8 {[%clk 0:02:30.2]} 16. c3 {[%clk 0:02:58.3]} 16... Ne6
{[%clk 0:02:24.2]} 17. Bh3 {[%clk 0:02:56.2]} 17... Rad8 {[%clk 0:02:22.5]} 18.
Rad1 {[%clk 0:02:51.2]} 18... Ba7 {[%clk 0:01:43.4]} 19. Bg5 {[%clk 0:02:34.9]}
19... Rxd1 {[%clk 0:01:24]} 20. Rxd1 {[%clk 0:02:33]} 20... Rd8 {[%clk
0:01:24.5]} 21. Bxe6 {[%clk 0:02:10.6]} 21... fxe6 {[%clk 0:01:20.6]} 22. Rxd8+
{[%clk 0:02:06.8]} 22... Qxd8 {[%clk 0:01:14.8]} 23. Nxe5 {[%clk 0:02:02.7]}
23... h6 {[%clk 0:01:10.9]} 24. Bxf6 {[%clk 0:01:51.2]} 24... Qxf6 {[%clk
0:01:11.8]} 25. Nc4 {[%clk 0:01:48.8]} 25... Qd8 {[%clk 0:00:46.5]} 26. Qd2
{[%clk 0:01:34.9]} 26... Qc7 {[%clk 0:00:40.9]} 27. Qd6 {[%clk 0:01:31.5]} 27...
Qf7 {[%clk 0:00:40.7]} 28. Qd2 {[%clk 0:01:18.8]} 28... b5 {[%clk 0:00:36.5]}
29. axb5 {[%clk 0:01:03.4]} 29... cxb5 {[%clk 0:00:37.4]} 30. Ne5 {[%clk
0:01:03.2]} 30... Qf6 {[%clk 0:00:22.4]} 31. Nc6 {[%clk 0:00:59.4]} 31... Bc5
{[%clk 0:00:22.2]} 32. Qd8+ {[%clk 0:00:48.6]} 32... Qxd8 {[%clk 0:00:15.4]} 33.
Nxd8 {[%clk 0:00:49.5]} 33... b4 {[%clk 0:00:11]} 34. cxb4 {[%clk 0:00:40.8]}
34... Bxb4 {[%clk 0:00:11.9]} 35. b3 {[%clk 0:00:23.1]} 35... Kf8 {[%clk
0:00:06.4]} 36. Nxe6+ {[%clk 0:00:22.5]} 36... Kf7 {[%clk 0:00:06.9]} 37. Nf4
{[%clk 0:00:20.3]} 37... Kf6 {[%clk 0:00:04.8]} 38. Nd5+ {[%clk 0:00:18.9]}
38... Ke5 {[%clk 0:00:05]} 39. Nxb4 {[%clk 0:00:19.5]} 39... axb4 {[%clk
0:00:05.9]} 40. f3 {[%clk 0:00:20]} 40... Kd4 {[%clk 0:00:06.5]} 41. Kf2 {[%clk
0:00:20.2]} 41... Kc3 {[%clk 0:00:07.1]} 42. e5 {[%clk 0:00:20.9]} 42... Kxb3
{[%clk 0:00:07.8]} 43. e6 {[%clk 0:00:21.8]} 43... Ka2 {[%clk 0:00:08.5]} 44. e7
{[%clk 0:00:22.7]} 44... b3 {[%clk 0:00:09.4]} 45. e8=Q {[%clk 0:00:23.5]} 45...
b2 {[%clk 0:00:10.3]} 46. Qa4+ {[%clk 0:00:24]} 46... Kb1 {[%clk 0:00:10.5]} 47.
Ke2 {[%clk 0:00:24.2]} 47... Kc1 {[%clk 0:00:11.1]} 48. Qd1# {[%clk 0:00:22.4]}
1-0

[Event "Late-Titled-Tuesday-Blitz-March-26-2024"]
[Site "Chess.com"]
[Date "2024.03.26"]
[Round "4"]
[White "deepfear"]
[Black "HanSchut"]
[Result "0-1"]
[WhiteElo "1955"]
[BlackElo "2276"]
[TimeControl "180+1"]
[EndTime "14:41:14 PDT"]
[Termination "HanSchut won by resignation"]

1. e4 {[%clk 0:02:59.4]} 1... c5 {[%clk 0:02:59.7]} 2. Nc3 {[%clk 0:02:58.9]}
2... Nc6 {[%clk 0:02:58.5]} 3. f4 {[%clk 0:02:56.9]} 3... g6 {[%clk 0:02:58.7]}
4. Nf3 {[%clk 0:02:57.3]} 4... Bg7 {[%clk 0:02:58.7]} 5. Bc4 {[%clk 0:02:57]}
5... e6 {[%clk 0:02:59.2]} 6. f5 {[%clk 0:02:48.8]} 6... Nge7 {[%clk 0:02:53.6]}
7. fxg6 {[%clk 0:02:41.1]} 7... hxg6 {[%clk 0:02:52.8]} 8. d3 {[%clk 0:02:39.6]}
8... d5 {[%clk 0:02:44.3]} 9. Bb5 {[%clk 0:02:36.8]} 9... d4 {[%clk 0:02:39]}
10. Bxc6+ {[%clk 0:02:34.5]} 10... Nxc6 {[%clk 0:02:38.5]} 11. Ne2 {[%clk
0:02:34.4]} 11... e5 {[%clk 0:02:29.9]} 12. Bg5 {[%clk 0:02:23.7]} 12... f6
{[%clk 0:02:24.2]} 13. Bh4 {[%clk 0:02:11.6]} 13... Bg4 {[%clk 0:02:13.4]} 14.
Bg3 {[%clk 0:01:55.1]} 14... Bxf3 {[%clk 0:02:12.7]} 15. gxf3 {[%clk 0:01:55]}
15... Qb6 {[%clk 0:01:59.2]} 16. Rb1 {[%clk 0:01:47.3]} 16... O-O-O {[%clk
0:01:49.4]} 17. a3 {[%clk 0:01:30.4]} 17... g5 {[%clk 0:01:42.9]} 18. Kf1 {[%clk
0:01:13.7]} 18... Rh3 {[%clk 0:01:28.8]} 19. b4 {[%clk 0:00:57.7]} 19... Rdh8
{[%clk 0:01:23.1]} 20. Kg2 {[%clk 0:00:57.8]} 20... cxb4 {[%clk 0:00:53.4]} 21.
axb4 {[%clk 0:00:55]} 21... a6 {[%clk 0:00:42.9]} 22. c3 {[%clk 0:00:49.2]}
22... f5 {[%clk 0:00:20.5]} 23. Qb3 {[%clk 0:00:45.3]} 23... f4 {[%clk
0:00:18.9]} 24. Bf2 {[%clk 0:00:44]} 24... Ne7 {[%clk 0:00:15.3]} 25. Qf7 {[%clk
0:00:40.4]} 25... Qh6 {[%clk 0:00:13.6]} 26. Qxe7 {[%clk 0:00:19.6]} 26... Rxh2+
{[%clk 0:00:13.2]} 27. Rxh2 {[%clk 0:00:19.9]} 27... Qxh2+ {[%clk 0:00:13.8]}
28. Kf1 {[%clk 0:00:20.6]} 28... Qh1+ {[%clk 0:00:12.4]} 29. Bg1 {[%clk
0:00:20.9]} 29... Qxf3+ {[%clk 0:00:12.7]} 30. Ke1 {[%clk 0:00:20.3]} 30... Rh1
{[%clk 0:00:07.5]} 31. Qe8+ {[%clk 0:00:17.8]} 31... Kc7 {[%clk 0:00:06.3]} 32.
Qe7+ {[%clk 0:00:17]} 32... Kb8 {[%clk 0:00:06.8]} 33. Kd2 {[%clk 0:00:15.7]}
33... Rxg1 {[%clk 0:00:05.2]} 34. Rxg1 {[%clk 0:00:15.2]} 34... Qe3+ {[%clk
0:00:06.1]} 35. Kd1 {[%clk 0:00:15.1]} 35... f3 {[%clk 0:00:07]} 36. Qxg7 {[%clk
0:00:14]} 36... fxe2+ {[%clk 0:00:05.6]} 37. Ke1 {[%clk 0:00:13.4]} 37... Qxg1+
{[%clk 0:00:05.3]} 38. Kxe2 {[%clk 0:00:13.6]} 38... Qe3+ {[%clk 0:00:06]} 39.
Kd1 {[%clk 0:00:12.6]} 39... Qxd3+ {[%clk 0:00:06.4]} 40. Ke1 {[%clk 0:00:12.9]}
40... Qxc3+ {[%clk 0:00:07]} 41. Kf1 {[%clk 0:00:11.4]} 41... Qf3+ {[%clk
0:00:06.8]} 42. Kg1 {[%clk 0:00:11.3]} 42... d3 {[%clk 0:00:05.8]} 43. Qxe5+
{[%clk 0:00:11.8]} 43... Ka7 {[%clk 0:00:05.6]} 44. Qc5+ {[%clk 0:00:12.4]}
44... Ka8 {[%clk 0:00:06]} 45. Qc8+ {[%clk 0:00:13.1]} 45... Ka7 {[%clk
0:00:06.4]} 46. Qc5+ {[%clk 0:00:13.8]} 46... Kb8 {[%clk 0:00:06.9]} 47. Qc8+
{[%clk 0:00:14.7]} 47... Kxc8 {[%clk 0:00:07.3]} 0-1

[Event "Late-Titled-Tuesday-Blitz-March-26-2024"]
[Site "Chess.com"]
[Date "2024.03.26"]
[Round "4"]
[White "cthake"]
[Black "AntonovaNadezhda"]
[Result "1-0"]
[WhiteElo "1775"]
[BlackElo "2169"]
[TimeControl "180+1"]
[EndTime "14:41:14 PDT"]
[Termination "cthake won on time"]

1. e4 {[%clk 0:03:00.9]} 1... c5 {[%clk 0:02:58]} 2. Nf3 {[%clk 0:03:00]} 2...
d6 {[%clk 0:02:58.2]} 3. d4 {[%clk 0:02:59.2]} 3... cxd4 {[%clk 0:02:59.1]} 4.
Nxd4 {[%clk 0:02:58.9]} 4... Nf6 {[%clk 0:03:00]} 5. Nc3 {[%clk 0:02:58.3]} 5...
a6 {[%clk 0:03:00.4]} 6. Be3 {[%clk 0:02:57.6]} 6... e5 {[%clk 0:02:59.4]} 7.
Nb3 {[%clk 0:02:56.3]} 7... Be6 {[%clk 0:02:58.4]} 8. f3 {[%clk 0:02:48.1]} 8...
h5 {[%clk 0:02:56.7]} 9. Qd2 {[%clk 0:02:46.9]} 9... Be7 {[%clk 0:02:55.2]} 10.
O-O-O {[%clk 0:02:46.4]} 10... Nbd7 {[%clk 0:02:55.1]} 11. Nd5 {[%clk
0:02:42.8]} 11... Bxd5 {[%clk 0:02:49.6]} 12. exd5 {[%clk 0:02:41.6]} 12... Nb6
{[%clk 0:02:45.7]} 13. c4 {[%clk 0:02:36.3]} 13... Rc8 {[%clk 0:02:44.4]} 14.
Na5 {[%clk 0:02:19.4]} 14... Qc7 {[%clk 0:02:37.3]} 15. Kb1 {[%clk 0:02:13.7]}
15... O-O {[%clk 0:02:06.7]} 16. Bd3 {[%clk 0:02:04]} 16... Na4 {[%clk 0:01:59]}
17. b3 {[%clk 0:01:55.8]} 17... Nc5 {[%clk 0:01:57.3]} 18. Bc2 {[%clk
0:01:40.8]} 18... Bd8 {[%clk 0:01:43.3]} 19. b4 {[%clk 0:01:38.1]} 19... Ncd7
{[%clk 0:01:24.6]} 20. Qd3 {[%clk 0:01:38]} 20... Nb8 {[%clk 0:01:14.9]} 21. h4
{[%clk 0:01:36.8]} 21... b6 {[%clk 0:01:13.4]} 22. Nc6 {[%clk 0:01:27.2]} 22...
Nxc6 {[%clk 0:01:12.9]} 23. dxc6 {[%clk 0:01:27.1]} 23... Qxc6 {[%clk
0:01:13.3]} 24. Bb3 {[%clk 0:01:19.3]} 24... Be7 {[%clk 0:01:00.6]} 25. g4
{[%clk 0:01:14]} 25... Qxf3 {[%clk 0:00:50]} 26. gxh5 {[%clk 0:01:05.3]} 26...
Qe4 {[%clk 0:00:49.2]} 27. Qxe4 {[%clk 0:00:59]} 27... Nxe4 {[%clk 0:00:48.5]}
28. Rhg1 {[%clk 0:00:55.7]} 28... Kh8 {[%clk 0:00:38.6]} 29. Kb2 {[%clk
0:00:53.6]} 29... Bxh4 {[%clk 0:00:30]} 30. h6 {[%clk 0:00:53.3]} 30... Bf6
{[%clk 0:00:29.4]} 31. hxg7+ {[%clk 0:00:52.9]} 31... Bxg7 {[%clk 0:00:29.9]}
32. Rh1+ {[%clk 0:00:52.2]} 32... Kg8 {[%clk 0:00:30.2]} 33. Rdg1 {[%clk
0:00:52.2]} 33... f6 {[%clk 0:00:05.1]} 34. Rh4 {[%clk 0:00:47.3]} 34... Kf7
{[%clk 0:00:04.6]} 35. Rxe4 {[%clk 0:00:46.6]} 35... Ke6 {[%clk 0:00:03.1]} 36.
c5+ {[%clk 0:00:46.6]} 36... d5 {[%clk 0:00:03.2]} 37. Reg4 {[%clk 0:00:45.7]}
37... Bh6 {[%clk 0:00:02.7]} 38. Bxh6 {[%clk 0:00:44.9]} 38... Rh8 {[%clk
0:00:03.1]} 39. Bg7 {[%clk 0:00:43.6]} 39... Rh7 {[%clk 0:00:03.2]} 40. Rg6
{[%clk 0:00:42.7]} 40... Rh2+ {[%clk 0:00:02.1]} 41. Ka3 {[%clk 0:00:42.3]}
41... bxc5 {[%clk 0:00:02.3]} 42. Rxf6+ {[%clk 0:00:42.1]} 42... Ke7 {[%clk
0:00:01.8]} 43. Rxa6 {[%clk 0:00:37.2]} 43... c4 {[%clk 0:00:02]} 44. Ba4 {[%clk
0:00:35.4]} 44... Rc7 {[%clk 0:00:01.9]} 45. Bxe5 {[%clk 0:00:33.4]} 45... Rb7
{[%clk 0:00:01.3]} 46. Bxh2 {[%clk 0:00:32.7]} 1-0